[Event "Titled Tuesday Blitz December 27 Early 2022"]
[White "Haraguchi, Diego Sashaki"]
[Black "Delorme, Alban"]
[WhiteFideId "22729925"]
[BlackFideId "623636"]
[WhiteElo "2015"]
[BlackElo "2298"]
[Result "0-1"]
[Round "08"]
[TimeControl "180+2"]
[Date "2022.12.27"]
[WhiteClock "0:00:13"]
[BlackClock "0:00:16"]

1. e4 {[%clk 0:03:00]}  c5 {[%clk 0:03:00]} 2. Nf3 {[%clk 0:03:00]}  d6 {[%clk 0:03:00]} 3. d4 {[%clk 0:02:58]}  cxd4 {[%clk 0:03:01]} 4. Nxd4 {[%clk 0:02:58]}  Nf6 {[%clk 0:03:01]} 5. Nc3 {[%clk 0:02:58]}  a6 {[%clk 0:03:02]} 6. Bg5 {[%clk 0:02:59]}  e6 {[%clk 0:03:01]} 7. f4 {[%clk 0:02:59]}  Be7 {[%clk 0:03:01]} 8. Qd2 {[%clk 0:02:59]}  h6 {[%clk 0:02:55]} 9. Bxf6 {[%clk 0:02:45]}  Bxf6 {[%clk 0:02:54]} 10. O-O-O {[%clk 0:02:45]}  O-O {[%clk 0:02:49]} 11. Nf3 {[%clk 0:02:45]}  Qa5 {[%clk 0:02:47]} 12. e5 {[%clk 0:02:39]}  dxe5 {[%clk 0:02:46]} 13. fxe5 {[%clk 0:02:38]}  Bxe5 {[%clk 0:02:47]} 14. Nxe5 {[%clk 0:02:33]}  Qxe5 {[%clk 0:02:48]} 15. Bd3 {[%clk 0:02:34]}  Nc6 {[%clk 0:02:41]} 16. h4 {[%clk 0:02:21]}  b5 {[%clk 0:02:39]} 17. g4 {[%clk 0:02:18]}  b4 {[%clk 0:02:38]} 18. Ne4 {[%clk 0:02:10]}  a5 {[%clk 0:02:38]} 19. g5 {[%clk 0:02:10]}  h5 {[%clk 0:02:20]} 20. Rde1 {[%clk 0:02:01]}  Qd4 {[%clk 0:02:12]} 21. Qe2 {[%clk 0:01:54]}  g6 {[%clk 0:02:04]} 22. Nf6+ {[%clk 0:01:53]}  Kg7 {[%clk 0:02:02]} 23. Rhf1 {[%clk 0:01:50]}  a4 {[%clk 0:01:56]} 24. Nxh5+ {[%clk 0:01:49]}  Kh8 {[%clk 0:01:26]} 25. Bxg6 {[%clk 0:01:43]}  a3 {[%clk 0:01:15]} 26. c3 {[%clk 0:01:38]}  axb2+ {[%clk 0:00:58]} 27. Kb1 {[%clk 0:01:33]}  bxc3 {[%clk 0:00:53]} 28. Bxf7 {[%clk 0:01:27]}  Ba6 {[%clk 0:00:28]} 29. Qc2 {[%clk 0:00:19]}  Bd3 {[%clk 0:00:25]} 30. Re2 {[%clk 0:00:19]}  Bxc2+ {[%clk 0:00:21]} 31. Rxc2 {[%clk 0:00:19]}  Rxa2 {[%clk 0:00:20]} 32. Rxc3 {[%clk 0:00:13]}  Qxc3 {[%clk 0:00:16]} 0-1


[Site "https://www.chess.com"]

[Event "Titled Tuesday Blitz December 27 Early 2022"]
[White "Hasangatin, Ramil"]
[Black "Xiong, Jeffery"]
[WhiteFideId "4122160"]
[BlackFideId "2047640"]
[WhiteElo "2457"]
[BlackElo "2692"]
[Result "0-1"]
[Round "08"]
[TimeControl "180+2"]
[Date "2022.12.27"]
[WhiteClock "0:00:01"]
[BlackClock "0:00:17"]

1. e4 {[%clk 0:03:00]}  e6 {[%clk 0:02:58]} 2. d4 {[%clk 0:02:59]}  d5 {[%clk 0:02:57]} 3. exd5 {[%clk 0:02:59]}  exd5 {[%clk 0:02:55]} 4. Nf3 {[%clk 0:03:00]}  Bd6 {[%clk 0:02:56]} 5. Bd3 {[%clk 0:02:58]}  Ne7 {[%clk 0:02:54]} 6. O-O {[%clk 0:02:57]}  Nbc6 {[%clk 0:02:55]} 7. c3 {[%clk 0:02:51]}  Bg4 {[%clk 0:02:55]} 8. Nbd2 {[%clk 0:02:51]}  Qd7 {[%clk 0:02:55]} 9. Re1 {[%clk 0:02:49]}  O-O-O {[%clk 0:02:55]} 10. b4 {[%clk 0:02:48]}  Ng6 {[%clk 0:02:51]} 11. Qa4 {[%clk 0:02:47]}  Kb8 {[%clk 0:02:50]} 12. b5 {[%clk 0:02:47]}  Nce7 {[%clk 0:02:49]} 13. Ne5 {[%clk 0:02:47]}  Bxe5 {[%clk 0:02:42]} 14. dxe5 {[%clk 0:02:48]}  d4 {[%clk 0:02:32]} 15. cxd4 {[%clk 0:02:44]}  Qxd4 {[%clk 0:02:16]} 16. Qxd4 {[%clk 0:02:45]}  Rxd4 {[%clk 0:02:16]} 17. Bf1 {[%clk 0:02:46]}  Rhd8 {[%clk 0:02:15]} 18. Nb3 {[%clk 0:02:46]}  Rd1 {[%clk 0:01:50]} 19. Bb2 {[%clk 0:02:36]}  Rxa1 {[%clk 0:01:50]} 20. Bxa1 {[%clk 0:02:34]}  Be6 {[%clk 0:01:48]} 21. Nd4 {[%clk 0:02:22]}  Bxa2 {[%clk 0:01:46]} 22. g3 {[%clk 0:02:12]}  c5 {[%clk 0:01:32]} 23. bxc6 {[%clk 0:02:10]}  Nxc6 {[%clk 0:01:32]} 24. Nxc6+ {[%clk 0:02:07]}  bxc6 {[%clk 0:01:32]} 25. f4 {[%clk 0:01:57]}  Ne7 {[%clk 0:01:27]} 26. Bc3 {[%clk 0:01:53]}  Nd5 {[%clk 0:01:07]} 27. Ba5 {[%clk 0:01:40]}  Nb6 {[%clk 0:01:06]} 28. Bb4 {[%clk 0:01:36]}  Rd4 {[%clk 0:00:54]} 29. Bc5 {[%clk 0:01:33]}  Ra4 {[%clk 0:00:54]} 30. f5 {[%clk 0:01:29]}  Bd5 {[%clk 0:00:30]} 31. e6 {[%clk 0:01:15]}  fxe6 {[%clk 0:00:31]} 32. fxe6 {[%clk 0:01:15]}  Re4 {[%clk 0:00:32]} 33. Rxe4 {[%clk 0:01:07]}  Bxe4 {[%clk 0:00:33]} 34. Bg2 {[%clk 0:00:59]}  Bf5 {[%clk 0:00:30]} 35. e7 {[%clk 0:00:10]}  Bd7 {[%clk 0:00:31]} 36. Be4 {[%clk 0:00:06]}  g6 {[%clk 0:00:31]} 37. h4 {[%clk 0:00:06]}  Kc7 {[%clk 0:00:31]} 38. h5 {[%clk 0:00:07]}  Be8 {[%clk 0:00:31]} 39. h6 {[%clk 0:00:06]}  a5 {[%clk 0:00:31]} 40. Kf2 {[%clk 0:00:06]}  Nd7 {[%clk 0:00:30]} 41. Bd4 {[%clk 0:00:05]}  a4 {[%clk 0:00:28]} 42. Bb2 {[%clk 0:00:03]}  c5 {[%clk 0:00:24]} 43. Ke3 {[%clk 0:00:02]}  Kd6 {[%clk 0:00:24]} 44. Bc2 {[%clk 0:00:02]}  Nb6 {[%clk 0:00:24]} 45. Kf4 {[%clk 0:00:01]}  Kxe7 {[%clk 0:00:24]} 46. Kg5 {[%clk 0:00:01]}  Nc4 {[%clk 0:00:20]} 47. Bc1 {[%clk 0:00:01]}  Bf7 {[%clk 0:00:18]} 48. Bxa4 {[%clk 0:00:01]}  Nd6 {[%clk 0:00:17]} 0-1


[Site "https://www.chess.com"]

[Event "Titled Tuesday Blitz December 27 Early 2022"]
[White "Heinemann, Josefine"]
[Black "Graham, Nathaniel"]
[WhiteFideId "12900460"]
[BlackFideId "2007983"]
[WhiteElo "2289"]
[BlackElo "2262"]
[Result "1-0"]
[Round "08"]
[TimeControl "180+2"]
[Date "2022.12.27"]
[WhiteClock "0:00:37"]
[BlackClock "0:00:01"]

1. Nf3 {[%clk 0:03:00]}  d5 {[%clk 0:00:59]} 2. d4 {[%clk 0:02:59]}  c6 {[%clk 0:00:59]} 3. g3 {[%clk 0:02:58]}  Nf6 {[%clk 0:01:00]} 4. Bg2 {[%clk 0:02:58]}  Bf5 {[%clk 0:01:01]} 5. O-O {[%clk 0:02:56]}  e6 {[%clk 0:01:01]} 6. c4 {[%clk 0:02:56]}  Nbd7 {[%clk 0:01:02]} 7. Nc3 {[%clk 0:02:53]}  Bd6 {[%clk 0:01:03]} 8. Nd2 {[%clk 0:02:50]}  O-O {[%clk 0:01:02]} 9. e4 {[%clk 0:02:49]}  Nxe4 {[%clk 0:01:03]} 10. Ndxe4 {[%clk 0:02:49]}  dxe4 {[%clk 0:01:03]} 11. Nxe4 {[%clk 0:02:50]}  Be7 {[%clk 0:01:00]} 12. Be3 {[%clk 0:02:48]}  Nf6 {[%clk 0:01:00]} 13. Nxf6+ {[%clk 0:02:38]}  Bxf6 {[%clk 0:01:01]} 14. Qb3 {[%clk 0:02:35]}  Bxd4 {[%clk 0:00:45]} 15. Rad1 {[%clk 0:02:24]}  c5 {[%clk 0:00:45]} 16. Qxb7 {[%clk 0:02:23]}  Rb8 {[%clk 0:00:41]} 17. Qxa7 {[%clk 0:02:23]}  Rxb2 {[%clk 0:00:39]} 18. Bxd4 {[%clk 0:02:22]}  cxd4 {[%clk 0:00:39]} 19. Rxd4 {[%clk 0:02:23]}  Rxa2 {[%clk 0:00:20]} 20. Qc5 {[%clk 0:01:49]}  Qc8 {[%clk 0:00:18]} 21. Qe5 {[%clk 0:01:47]}  Rc2 {[%clk 0:00:17]} 22. Qf4 {[%clk 0:01:34]}  Re8 {[%clk 0:00:09]} 23. Qh4 {[%clk 0:00:47]}  e5 {[%clk 0:00:05]} 24. Rd5 {[%clk 0:00:43]}  Rxc4 {[%clk 0:00:04]} 25. Qg5 {[%clk 0:00:42]}  f6 {[%clk 0:00:01]} 26. Qd2 {[%clk 0:00:40]}  Be6 {[%clk 0:00:01]} 27. Rd6 {[%clk 0:00:40]}  Rc2 {[%clk 0:00:01]} 28. Qb4 {[%clk 0:00:37]} 1-0


[Site "https://www.chess.com"]

[Event "Titled Tuesday Blitz December 27 Early 2022"]
[White "Hnydiuk, Aleksander"]
[Black "Avila Pavas, Santiago"]
[WhiteFideId "1109057"]
[BlackFideId "4437128"]
[WhiteElo "2363"]
[BlackElo "2522"]
[Result "0-1"]
[Round "08"]
[TimeControl "180+2"]
[Date "2022.12.27"]
[WhiteClock "0:00:02"]
[BlackClock "0:00:19"]

1. e4 {[%clk 0:03:00]}  Nf6 {[%clk 0:03:00]} 2. e5 {[%clk 0:03:00]}  Nd5 {[%clk 0:03:01]} 3. d4 {[%clk 0:03:00]}  d6 {[%clk 0:03:01]} 4. Nf3 {[%clk 0:03:01]}  g6 {[%clk 0:03:02]} 5. Bc4 {[%clk 0:03:00]}  Nb6 {[%clk 0:03:02]} 6. Bb3 {[%clk 0:03:00]}  Bg7 {[%clk 0:03:03]} 7. O-O {[%clk 0:03:00]}  O-O {[%clk 0:03:04]} 8. Re1 {[%clk 0:02:54]}  Bg4 {[%clk 0:03:03]} 9. h3 {[%clk 0:02:50]}  Bxf3 {[%clk 0:03:02]} 10. Qxf3 {[%clk 0:02:51]}  Nc6 {[%clk 0:03:03]} 11. e6 {[%clk 0:02:44]}  Nxd4 {[%clk 0:02:46]} 12. exf7+ {[%clk 0:02:43]}  Kh8 {[%clk 0:02:47]} 13. Qxb7 {[%clk 0:02:38]}  d5 {[%clk 0:02:30]} 14. c3 {[%clk 0:02:25]}  Nf5 {[%clk 0:02:28]} 15. Be3 {[%clk 0:01:46]}  Nxe3 {[%clk 0:02:23]} 16. Rxe3 {[%clk 0:01:47]}  Rxf7 {[%clk 0:02:02]} 17. Nd2 {[%clk 0:01:47]}  e5 {[%clk 0:01:41]} 18. Ne4 {[%clk 0:01:47]}  Rf4 {[%clk 0:01:33]} 19. Rd1 {[%clk 0:01:40]}  d4 {[%clk 0:01:18]} 20. cxd4 {[%clk 0:01:03]}  exd4 {[%clk 0:01:19]} 21. Ree1 {[%clk 0:00:58]}  Qe7 {[%clk 0:01:01]} 22. Nc3 {[%clk 0:00:38]}  Qf8 {[%clk 0:01:01]} 23. Nb5 {[%clk 0:00:34]}  Rxf2 {[%clk 0:00:51]} 24. Nxc7 {[%clk 0:00:34]}  Rb8 {[%clk 0:00:52]} 25. Qe4 {[%clk 0:00:32]}  Rxb2 {[%clk 0:00:46]} 26. Ne6 {[%clk 0:00:27]}  Qf2+ {[%clk 0:00:40]} 27. Kh1 {[%clk 0:00:27]}  Re8 {[%clk 0:00:40]} 28. Rf1 {[%clk 0:00:19]}  Qe3 {[%clk 0:00:39]} 29. Qc6 {[%clk 0:00:14]}  Rc8 {[%clk 0:00:39]} 30. Qd6 {[%clk 0:00:10]}  Qe4 {[%clk 0:00:35]} 31. Rf3 {[%clk 0:00:08]}  Be5 {[%clk 0:00:19]} 32. Qe7 {[%clk 0:00:06]}  Rb1 {[%clk 0:00:19]} 33. Rxb1 {[%clk 0:00:02]}  Qxb1+ {[%clk 0:00:19]} 0-1


[Site "https://www.chess.com"]

[Event "Titled Tuesday Blitz December 27 Early 2022"]
[White "Iljin, Timofey"]
[Black "Devaev, Alexander"]
[WhiteFideId "14110180"]
[BlackFideId "4169395"]
[WhiteElo "2329"]
[BlackElo "2325"]
[Result "1-0"]
[Round "08"]
[TimeControl "180+2"]
[Date "2022.12.27"]
[WhiteClock "0:00:18"]
[BlackClock "0:00:02"]

1. e4 {[%clk 0:03:00]}  c6 {[%clk 0:02:37]} 2. d4 {[%clk 0:02:49]}  d5 {[%clk 0:02:38]} 3. e5 {[%clk 0:02:46]}  Bf5 {[%clk 0:02:37]} 4. h4 {[%clk 0:02:46]}  Qb6 {[%clk 0:02:37]} 5. Bd3 {[%clk 0:02:32]}  Bxd3 {[%clk 0:02:35]} 6. Qxd3 {[%clk 0:02:32]}  e6 {[%clk 0:02:36]} 7. Nf3 {[%clk 0:02:14]}  c5 {[%clk 0:02:36]} 8. c3 {[%clk 0:02:10]}  Nc6 {[%clk 0:02:35]} 9. O-O {[%clk 0:02:09]}  a6 {[%clk 0:02:25]} 10. dxc5 {[%clk 0:02:09]}  Bxc5 {[%clk 0:02:21]} 11. b4 {[%clk 0:02:09]}  Bf8 {[%clk 0:02:20]} 12. a4 {[%clk 0:02:06]}  Qc7 {[%clk 0:02:15]} 13. Re1 {[%clk 0:02:05]}  Nge7 {[%clk 0:01:50]} 14. Bf4 {[%clk 0:02:03]}  h5 {[%clk 0:01:44]} 15. Nbd2 {[%clk 0:02:00]}  Ng6 {[%clk 0:01:44]} 16. Bg3 {[%clk 0:01:59]}  Be7 {[%clk 0:01:44]} 17. Nb3 {[%clk 0:01:58]}  Qd8 {[%clk 0:01:38]} 18. b5 {[%clk 0:01:52]}  Na5 {[%clk 0:01:31]} 19. bxa6 {[%clk 0:01:49]}  bxa6 {[%clk 0:01:14]} 20. Nxa5 {[%clk 0:01:49]}  Qxa5 {[%clk 0:01:14]} 21. Nd4 {[%clk 0:01:49]}  Rc8 {[%clk 0:01:04]} 22. Nxe6 {[%clk 0:01:44]}  Rxc3 {[%clk 0:00:52]} 23. Nxg7+ {[%clk 0:01:43]}  Kf8 {[%clk 0:00:47]} 24. Ne6+ {[%clk 0:01:43]}  Ke8 {[%clk 0:00:28]} 25. Qf5 {[%clk 0:01:41]}  Bxh4 {[%clk 0:00:15]} 26. Ng7+ {[%clk 0:01:35]}  Kf8 {[%clk 0:00:10]} 27. e6 {[%clk 0:01:29]}  Kxg7 {[%clk 0:00:10]} 28. Qxf7+ {[%clk 0:01:29]}  Kh6 {[%clk 0:00:11]} 29. Bxh4 {[%clk 0:01:26]}  Rf8 {[%clk 0:00:08]} 30. Qd7 {[%clk 0:00:20]}  Rc7 {[%clk 0:00:07]} 31. Qd6 {[%clk 0:00:19]}  Re8 {[%clk 0:00:02]} 32. e7 {[%clk 0:00:18]} 1-0


[Site "https://www.chess.com"]

[Event "Titled Tuesday Blitz December 27 Early 2022"]
[White "Jobava, Baadur"]
[Black "Vakhlamov, Igor L."]
[WhiteFideId "13601520"]
[BlackFideId "24126748"]
[WhiteElo "2578"]
[BlackElo "2413"]
[Result "1-0"]
[Round "08"]
[TimeControl "180+2"]
[Date "2022.12.27"]
[WhiteClock "0:00:16"]
[BlackClock "0:00:06"]

1. b3 {[%clk 0:03:00]}  e5 {[%clk 0:02:56]} 2. Bb2 {[%clk 0:02:59]}  Nc6 {[%clk 0:02:56]} 3. Nf3 {[%clk 0:02:59]}  e4 {[%clk 0:02:54]} 4. Nd4 {[%clk 0:02:58]}  Nxd4 {[%clk 0:02:54]} 5. Bxd4 {[%clk 0:02:59]}  Nf6 {[%clk 0:02:55]} 6. e3 {[%clk 0:02:58]}  Be7 {[%clk 0:02:52]} 7. c4 {[%clk 0:02:58]}  O-O {[%clk 0:02:52]} 8. Nc3 {[%clk 0:02:57]}  Re8 {[%clk 0:02:52]} 9. Be2 {[%clk 0:02:50]}  c5 {[%clk 0:02:45]} 10. Bxf6 {[%clk 0:02:47]}  Bxf6 {[%clk 0:02:46]} 11. Rc1 {[%clk 0:02:47]}  Bxc3 {[%clk 0:02:42]} 12. dxc3 {[%clk 0:02:48]}  d6 {[%clk 0:02:39]} 13. Rc2 {[%clk 0:02:48]}  Be6 {[%clk 0:02:28]} 14. O-O {[%clk 0:02:42]}  Qe7 {[%clk 0:02:12]} 15. Rd2 {[%clk 0:02:41]}  Rad8 {[%clk 0:02:12]} 16. Qc2 {[%clk 0:02:38]}  f5 {[%clk 0:01:43]} 17. Rfd1 {[%clk 0:02:34]}  Rd7 {[%clk 0:01:42]} 18. a4 {[%clk 0:02:25]}  Red8 {[%clk 0:01:41]} 19. a5 {[%clk 0:02:24]}  g6 {[%clk 0:01:37]} 20. g3 {[%clk 0:02:21]}  Kg7 {[%clk 0:01:37]} 21. b4 {[%clk 0:02:20]}  b6 {[%clk 0:01:36]} 22. Qa4 {[%clk 0:02:13]}  d5 {[%clk 0:01:29]} 23. cxd5 {[%clk 0:02:07]}  Rxd5 {[%clk 0:01:30]} 24. Rxd5 {[%clk 0:02:06]}  Rxd5 {[%clk 0:01:31]} 25. Rxd5 {[%clk 0:01:47]}  Bxd5 {[%clk 0:01:32]} 26. c4 {[%clk 0:01:25]}  Bf7 {[%clk 0:01:28]} 27. axb6 {[%clk 0:01:23]}  axb6 {[%clk 0:01:29]} 28. b5 {[%clk 0:01:14]}  Qf6 {[%clk 0:01:25]} 29. Kg2 {[%clk 0:01:11]}  Qd6 {[%clk 0:01:23]} 30. Qa1+ {[%clk 0:01:10]}  Qf6 {[%clk 0:01:23]} 31. Qa7 {[%clk 0:01:10]}  Qd6 {[%clk 0:01:22]} 32. h4 {[%clk 0:01:10]}  h5 {[%clk 0:01:21]} 33. Qb7 {[%clk 0:01:10]}  Kf6 {[%clk 0:01:15]} 34. Qa8 {[%clk 0:01:08]}  Kg7 {[%clk 0:01:15]} 35. Qc8 {[%clk 0:01:09]}  Qf6 {[%clk 0:01:14]} 36. Qc7 {[%clk 0:01:09]}  Kf8 {[%clk 0:01:12]} 37. Qf4 {[%clk 0:01:05]}  Kg7 {[%clk 0:01:10]} 38. Qc7 {[%clk 0:01:06]}  Kf8 {[%clk 0:01:10]} 39. f3 {[%clk 0:01:02]}  exf3+ {[%clk 0:01:09]} 40. Kxf3 {[%clk 0:01:02]}  Bg8 {[%clk 0:00:45]} 41. Kf4 {[%clk 0:00:59]}  Bf7 {[%clk 0:00:42]} 42. Qb8+ {[%clk 0:00:58]}  Kg7 {[%clk 0:00:40]} 43. Qc7 {[%clk 0:00:59]}  Kf8 {[%clk 0:00:40]} 44. Bd3 {[%clk 0:00:57]}  Kg7 {[%clk 0:00:37]} 45. Qe5 {[%clk 0:00:55]}  Be6 {[%clk 0:00:37]} 46. Bf1 {[%clk 0:00:44]}  Bf7 {[%clk 0:00:37]} 47. Be2 {[%clk 0:00:44]}  Be6 {[%clk 0:00:36]} 48. Bd3 {[%clk 0:00:44]}  Bf7 {[%clk 0:00:35]} 49. e4 {[%clk 0:00:43]}  fxe4+ {[%clk 0:00:36]} 50. Kxe4 {[%clk 0:00:44]}  Be6 {[%clk 0:00:35]} 51. Qc7+ {[%clk 0:00:32]}  Bf7 {[%clk 0:00:34]} 52. Qe5 {[%clk 0:00:30]}  Be6 {[%clk 0:00:34]} 53. Be2 {[%clk 0:00:26]}  Bf5+ {[%clk 0:00:31]} 54. Kd5 {[%clk 0:00:26]}  g5 {[%clk 0:00:04]} 55. hxg5 {[%clk 0:00:20]}  Qxe5+ {[%clk 0:00:02]} 56. Kxe5 {[%clk 0:00:21]}  Kg6 {[%clk 0:00:03]} 57. Kf4 {[%clk 0:00:18]}  Be6 {[%clk 0:00:02]} 58. Bd3+ {[%clk 0:00:18]}  Kg7 {[%clk 0:00:02]} 59. Ke5 {[%clk 0:00:18]}  Bf7 {[%clk 0:00:03]} 60. Kd6 {[%clk 0:00:17]}  Bg6 {[%clk 0:00:03]} 61. Be2 {[%clk 0:00:17]}  Bf7 {[%clk 0:00:03]} 62. Kc7 {[%clk 0:00:17]}  Kg6 {[%clk 0:00:04]} 63. Kxb6 {[%clk 0:00:17]}  Bxc4 {[%clk 0:00:05]} 64. Bxc4 {[%clk 0:00:16]}  h4 {[%clk 0:00:06]} 65. gxh4 {[%clk 0:00:16]} 1-0


[Site "https://www.chess.com"]

[Event "Titled Tuesday Blitz December 27 Early 2022"]
[White "Kahlert, Thomas"]
[Black "Oro, Faustino"]
[WhiteFideId "4625242"]
[BlackFideId "20000197"]
[WhiteElo "2144"]
[BlackElo "2269"]
[Result "0-1"]
[Round "08"]
[TimeControl "180+2"]
[Date "2022.12.27"]
[WhiteClock "0:02:10"]
[BlackClock "0:00:07"]

1. c4 {[%clk 0:03:00]}  e6 {[%clk 0:00:23]} 2. Nf3 {[%clk 0:02:57]}  Nf6 {[%clk 0:00:24]} 3. d4 {[%clk 0:02:56]}  Be7 {[%clk 0:00:24]} 4. Nc3 {[%clk 0:02:56]}  O-O {[%clk 0:00:25]} 5. e4 {[%clk 0:02:56]}  d6 {[%clk 0:00:26]} 6. Be2 {[%clk 0:02:55]}  Nbd7 {[%clk 0:00:26]} 7. O-O {[%clk 0:02:55]}  e5 {[%clk 0:00:26]} 8. Be3 {[%clk 0:02:51]}  exd4 {[%clk 0:00:26]} 9. Nxd4 {[%clk 0:02:51]}  Re8 {[%clk 0:00:26]} 10. Qc2 {[%clk 0:02:50]}  Bf8 {[%clk 0:00:25]} 11. Rad1 {[%clk 0:02:47]}  c6 {[%clk 0:00:25]} 12. f3 {[%clk 0:02:46]}  d5 {[%clk 0:00:23]} 13. Bg5 {[%clk 0:02:38]}  dxe4 {[%clk 0:00:22]} 14. Nxe4 {[%clk 0:02:37]}  Be7 {[%clk 0:00:20]} 15. Nf5 {[%clk 0:02:36]}  Qb6+ {[%clk 0:00:19]} 16. Be3 {[%clk 0:02:35]}  Qa5 {[%clk 0:00:16]} 17. Nxe7+ {[%clk 0:02:34]}  Rxe7 {[%clk 0:00:17]} 18. Bd2 {[%clk 0:02:31]}  Qc7 {[%clk 0:00:17]} 19. Bc3 {[%clk 0:02:30]}  Nxe4 {[%clk 0:00:16]} 20. fxe4 {[%clk 0:02:30]}  Ne5 {[%clk 0:00:16]} 21. Qd2 {[%clk 0:02:25]}  Be6 {[%clk 0:00:15]} 22. Qd6 {[%clk 0:02:23]}  Qxd6 {[%clk 0:00:14]} 23. Rxd6 {[%clk 0:02:22]}  Bxc4 {[%clk 0:00:12]} 24. Rfd1 {[%clk 0:02:11]}  Bxe2 {[%clk 0:00:07]} 25. Rd8+ {[%clk 0:02:10]}  Re8 {[%clk 0:00:08]} 26. Rxa8 {[%clk 0:02:10]}  Rxa8 {[%clk 0:00:07]} 27. Bxe5 {[%clk 0:02:10]}  Bxd1 {[%clk 0:00:07]} 0-1


[Site "https://www.chess.com"]

[Event "Titled Tuesday Blitz December 27 Early 2022"]
[White "Kilic, Eray"]
[Black "Chigaev, Maksim"]
[WhiteFideId "44517173"]
[BlackFideId "4108116"]
[WhiteElo "2414"]
[BlackElo "2628"]
[Result "1/2-1/2"]
[Round "08"]
[TimeControl "180+2"]
[Date "2022.12.27"]
[WhiteClock "0:00:15"]
[BlackClock "0:00:13"]

1. e4 {[%clk 0:03:00]}  c5 {[%clk 0:03:00]} 2. Nf3 {[%clk 0:03:01]}  e6 {[%clk 0:03:00]} 3. d4 {[%clk 0:02:59]}  cxd4 {[%clk 0:03:01]} 4. Nxd4 {[%clk 0:02:59]}  Nf6 {[%clk 0:03:02]} 5. Nc3 {[%clk 0:02:59]}  Nc6 {[%clk 0:03:03]} 6. Ndb5 {[%clk 0:03:00]}  Bb4 {[%clk 0:03:02]} 7. a3 {[%clk 0:03:00]}  Bxc3+ {[%clk 0:03:02]} 8. Nxc3 {[%clk 0:03:00]}  d5 {[%clk 0:03:03]} 9. exd5 {[%clk 0:03:01]}  exd5 {[%clk 0:03:04]} 10. Bd3 {[%clk 0:03:01]}  O-O {[%clk 0:03:04]} 11. O-O {[%clk 0:03:01]}  Bg4 {[%clk 0:03:05]} 12. f3 {[%clk 0:02:52]}  Bh5 {[%clk 0:03:05]} 13. Bg5 {[%clk 0:02:50]}  Qb6+ {[%clk 0:03:05]} 14. Kh1 {[%clk 0:02:50]}  Ne4 {[%clk 0:03:05]} 15. Nxe4 {[%clk 0:02:35]}  dxe4 {[%clk 0:03:05]} 16. Bxe4 {[%clk 0:02:35]}  Qxb2 {[%clk 0:03:06]} 17. Rb1 {[%clk 0:02:30]}  Qxa3 {[%clk 0:03:06]} 18. Rxb7 {[%clk 0:02:27]}  Rac8 {[%clk 0:03:07]} 19. Bxc6 {[%clk 0:01:26]}  Rxc6 {[%clk 0:03:06]} 20. Be7 {[%clk 0:01:25]}  Qa6 {[%clk 0:02:58]} 21. Rxa7 {[%clk 0:01:22]}  Qxa7 {[%clk 0:02:58]} 22. Bxf8 {[%clk 0:01:22]}  Qc7 {[%clk 0:02:42]} 23. Ba3 {[%clk 0:01:12]}  h6 {[%clk 0:02:32]} 24. c4 {[%clk 0:00:48]}  Rxc4 {[%clk 0:02:23]} 25. Bd6 {[%clk 0:00:48]}  Qc6 {[%clk 0:02:17]} 26. Bg3 {[%clk 0:00:47]}  Bg6 {[%clk 0:02:14]} 27. Re1 {[%clk 0:00:43]}  Kh7 {[%clk 0:02:11]} 28. h3 {[%clk 0:00:37]}  Rc2 {[%clk 0:02:02]} 29. Kh2 {[%clk 0:00:34]}  Qc4 {[%clk 0:01:59]} 30. Rg1 {[%clk 0:00:26]}  Bd3 {[%clk 0:01:53]} 31. Qe1 {[%clk 0:00:23]}  Be2 {[%clk 0:01:42]} 32. Qf2 {[%clk 0:00:22]}  Qd3 {[%clk 0:01:29]} 33. Kh1 {[%clk 0:00:21]}  Qg6 {[%clk 0:01:06]} 34. Bf4 {[%clk 0:00:16]}  Bd3 {[%clk 0:01:03]} 35. Qg3 {[%clk 0:00:16]}  Qxg3 {[%clk 0:00:37]} 36. Bxg3 {[%clk 0:00:17]}  g5 {[%clk 0:00:38]} 37. Re1 {[%clk 0:00:14]}  f5 {[%clk 0:00:37]} 38. Be5 {[%clk 0:00:14]}  f4 {[%clk 0:00:36]} 39. Kg1 {[%clk 0:00:12]}  Kg6 {[%clk 0:00:35]} 40. Bd4 {[%clk 0:00:12]}  Be2 {[%clk 0:00:31]} 41. Kf2 {[%clk 0:00:10]}  Bc4+ {[%clk 0:00:30]} 42. Kg1 {[%clk 0:00:11]}  Rd2 {[%clk 0:00:28]} 43. Bc3 {[%clk 0:00:11]}  Rd3 {[%clk 0:00:27]} 44. Bb2 {[%clk 0:00:10]}  Bd5 {[%clk 0:00:27]} 45. Be5 {[%clk 0:00:10]}  h5 {[%clk 0:00:23]} 46. Bb2 {[%clk 0:00:11]}  g4 {[%clk 0:00:21]} 47. hxg4 {[%clk 0:00:12]}  hxg4 {[%clk 0:00:22]} 48. Be5 {[%clk 0:00:12]}  Kf5 {[%clk 0:00:19]} 49. fxg4+ {[%clk 0:00:12]}  Kxg4 {[%clk 0:00:20]} 50. Re2 {[%clk 0:00:12]}  Kg3 {[%clk 0:00:16]} 51. Rf2 {[%clk 0:00:12]}  Rd1+ {[%clk 0:00:11]} 52. Rf1 {[%clk 0:00:13]}  Rxf1+ {[%clk 0:00:11]} 53. Kxf1 {[%clk 0:00:14]}  Bxg2+ {[%clk 0:00:12]} 54. Kg1 {[%clk 0:00:14]}  Kf3 {[%clk 0:00:13]} 55. Bxf4 {[%clk 0:00:15]} 1/2-1/2


[Site "https://www.chess.com"]

[Event "Titled Tuesday Blitz December 27 Early 2022"]
[White "Kvaloy, Aksel Bu"]
[Black "Fernandez Garcia, Gumersindo"]
[WhiteFideId "1528815"]
[BlackFideId "24516740"]
[WhiteElo "2321"]
[BlackElo "2160"]
[Result "0-1"]
[Round "08"]
[TimeControl "180+2"]
[Date "2022.12.27"]
[WhiteClock "0:01:49"]
[BlackClock "0:01:18"]

1. d4 {[%clk 0:03:00]}  Nf6 {[%clk 0:02:59]} 2. c4 {[%clk 0:02:55]}  g6 {[%clk 0:02:57]} 3. g3 {[%clk 0:02:55]}  Bg7 {[%clk 0:02:57]} 4. Nf3 {[%clk 0:02:55]}  O-O {[%clk 0:02:58]} 5. Bg2 {[%clk 0:02:56]}  d6 {[%clk 0:02:58]} 6. O-O {[%clk 0:02:56]}  Nbd7 {[%clk 0:02:59]} 7. Nc3 {[%clk 0:02:57]}  e5 {[%clk 0:02:59]} 8. dxe5 {[%clk 0:02:57]}  dxe5 {[%clk 0:02:59]} 9. b3 {[%clk 0:02:54]}  Re8 {[%clk 0:02:58]} 10. Bb2 {[%clk 0:02:55]}  c6 {[%clk 0:02:58]} 11. Nd2 {[%clk 0:02:54]}  Qc7 {[%clk 0:02:57]} 12. Nde4 {[%clk 0:02:54]}  Nxe4 {[%clk 0:02:56]} 13. Nxe4 {[%clk 0:02:55]}  f5 {[%clk 0:02:42]} 14. Nc3 {[%clk 0:02:49]}  Nc5 {[%clk 0:02:38]} 15. b4 {[%clk 0:02:48]}  Na6 {[%clk 0:02:21]} 16. a3 {[%clk 0:02:40]}  Be6 {[%clk 0:02:20]} 17. c5 {[%clk 0:02:34]}  Rad8 {[%clk 0:02:20]} 18. Qc2 {[%clk 0:02:33]}  Nb8 {[%clk 0:02:01]} 19. Rfd1 {[%clk 0:02:33]}  Rxd1+ {[%clk 0:01:49]} 20. Rxd1 {[%clk 0:02:33]}  Rd8 {[%clk 0:01:49]} 21. Rxd8+ {[%clk 0:02:32]}  Qxd8 {[%clk 0:01:50]} 22. e3 {[%clk 0:02:31]}  Bf6 {[%clk 0:01:45]} 23. Bf1 {[%clk 0:02:29]}  Kg7 {[%clk 0:01:42]} 24. h4 {[%clk 0:02:29]}  a5 {[%clk 0:01:37]} 25. Nb1 {[%clk 0:02:20]}  axb4 {[%clk 0:01:36]} 26. axb4 {[%clk 0:02:21]}  Na6 {[%clk 0:01:35]} 27. Bc3 {[%clk 0:02:18]}  Nc7 {[%clk 0:01:34]} 28. Nd2 {[%clk 0:02:17]}  Nd5 {[%clk 0:01:34]} 29. Bc4 {[%clk 0:02:02]}  f4 {[%clk 0:01:21]} 30. exf4 {[%clk 0:02:00]}  exf4 {[%clk 0:01:19]} 31. Bxf6+ {[%clk 0:01:59]}  Qxf6 {[%clk 0:01:20]} 32. Ne4 {[%clk 0:01:54]}  Qa1+ {[%clk 0:01:19]} 33. Kg2 {[%clk 0:01:51]}  fxg3 {[%clk 0:01:18]} 34. fxg3 {[%clk 0:01:49]}  Ne3+ {[%clk 0:01:18]} 0-1


[Site "https://www.chess.com"]